bitfinex-derivatives/quotes_SOLF0:USTF0_20240918
["timestamp","ask_amount","ask_price","bid_price","bid_amount"]
[1726637442285,13.2053,131.05,131.0,9.39]
[1726637442576,3.8153,131.05,131.01,9.39]
[1726637443583,13.2053,131.05,131.0,9.39]
[1726637444187,13.2053,131.05,131.01,3.816]
[1726637445388,13.2053,131.05,131.02,3.816]
[1726637447680,3.8153,131.05,131.02,3.816]
[1726637447884,13.2053,131.05,131.02,3.816]
[1726637453394,5.3112,131.06,131.03,3.8156]
[1726637453587,14.7012,131.06,131.03,3.8156]
[1726637455592,9.39,131.05,131.03,3.8156]
[1726637465297,5.3112,131.06,131.03,3.8156]
[1726637465704,14.7012,131.06,131.03,3.8156]
[1726637468409,1.4964,131.06,131.03,3.8156]
[1726637468609,1.4964,131.06,131.04,3.8154]
[1726637468800,5.222,131.07,131.04,3.8154]
[1726637469000,1.4074,131.07,131.03,9.39]
[1726637469298,1.4074,131.07,131.04,3.8151]
[1726637469805,13.2043,131.08,131.04,9.39]
[1726637470006,13.2043,131.08,131.05,3.8149]
[1726637472295,13.204,131.09,131.06,3.8148]
[1726637472500,9.39,131.09,131.01,3.73206414]
[1726637472707,9.39,131.08,131.03,9.39]
[1726637473403,13.2045,131.08,131.04,3.8151]
[1726637474608,13.2045,131.08,131.05,3.8151]
[1726637478610,9.39,131.06,130.99,2.9179]
[1726637478806,9.39,131.06,131.0,23.03574766]
[1726637479112,9.39,131.04,131.01,10.35845866]
[1726637479310,9.39,131.04,131.02,6.54225866]
[1726637479507,9.39,131.04,131.01,3.8162]
[1726637483115,3.8149,131.06,131.03,9.39]
[1726637483607,2.8977,131.07,131.04,9.39]
[1726637483803,1.4862,131.14,131.06,9.39]
[1726637484112,9.39,131.11,131.07,3.8143]
[1726637485013,13.2035,131.11,131.07,3.8143]
[1726637491221,13.2035,131.11,131.08,3.8142]
[1726637494023,13.2035,131.11,131.08,3.8142]
[1726637498125,3.8135,131.11,131.08,3.8142]
[1726637499216,3.8132,131.12,131.09,13.2039]
[1726637499427,9.39,131.13,131.09,13.2039]
[1726637499625,9.39,131.13,131.09,9.39]
[1726637500519,13.8784,131.14,131.09,9.39]
[1726637500721,17.691,131.14,131.1,3.8135]
[1726637501227,4.4884,131.14,131.11,3.8132]
[1726637502323,13.8784,131.14,131.1,3.8135]
[1726637504028,3.8128,131.13,131.1,3.8135]
[1726637505722,17.6911,131.14,131.1,3.8135]
[1726637508335,9.39,131.12,131.08,9.39]
[1726637508639,13.2033,131.12,131.08,13.2041]
[1726637513743,4.4884,131.14,131.07,3.8144]
[1726637513744,9.39,131.11,131.07,3.8144]
[1726637513943,1.4077,131.1,131.07,3.8144]
[1726637514642,1.4077,131.1,131.06,3.8147]
[1726637514843,10.7977,131.1,131.06,13.2047]
[1726637515044,12.259,131.1,131.06,13.2047]
[1726637515245,13.204,131.09,131.05,3.815]
[1726637515645,9.39,131.09,131.05,3.815]
[1726637515945,14.6223,131.09,131.05,3.815]
[1726637518551,1.4182,131.09,131.06,3.8146]
[1726637529559,16.0728,131.1,131.06,3.8146]
[1726637533464,12.259,131.1,131.07,3.8145]
[1726637533658,1.4077,131.1,131.06,9.39]
[1726637533857,1.4077,131.1,131.09,3.8139]
[1726637534059,13.2033,131.12,131.09,3.8139]
[1726637534862,13.2033,131.12,131.08,13.2041]
[1726637535159,9.39,131.09,131.02,1.5117]
[1726637535363,9.39,131.09,131.05,3.815]
[1726637535563,13.2039,131.09,131.05,3.815]
[1726637536367,9.39,131.08,131.05,3.815]
[1726637536764,9.39,131.08,131.02,1.5117]
[1726637536960,9.39,131.07,131.01,13.21918638]
[1726637537264,9.39,131.07,131.01,9.39]
[1726637538265,13.2047,131.07,131.03,3.8155]
[1726637538864,9.39,131.05,131.02,3.8159]
[1726637539061,1.5294,131.06,130.98,1.5117]
[1726637539264,9.39,131.04,131.0,9.39]
[1726637539858,9.39,131.04,131.01,3.8161]
[1726637540169,1.5294,131.06,131.0,9.39]
[1726637540365,9.39,131.05,131.02,3.8159]
[1726637543571,9.39,131.05,131.01,3.8161]
[1726637544170,9.39,131.05,131.02,3.816]
[1726637544861,14.7344,131.06,131.02,3.816]
[1726637545061,10.9194,131.06,131.03,3.8157]
[1726637548176,9.39,131.08,131.05,3.8151]
[1726637548773,13.2042,131.08,131.04,13.2052]
[1726637549477,13.2042,131.08,131.05,3.8151]
[1726637549978,3.8141,131.09,131.04,9.39]
[1726637550181,3.8141,131.09,131.05,9.39]
[1726637550380,9.39,131.1,131.06,3.8146]
[1726637550782,3.814,131.09,131.06,3.8146]
[1726637551377,9.39,131.1,131.05,9.39]
[1726637551378,13.2038,131.1,131.07,3.8145]
[1726637556986,9.39,131.08,130.99,1.4454]
[1726637557286,9.39,131.08,131.03,9.39]
[1726637558290,13.2044,131.08,131.04,3.8152]
[1726637559383,132.42949147,131.15,131.07,9.39]
[1726637559591,9.39,131.13,131.08,9.39]
[1726637559785,9.39,131.13,131.09,3.8139]
[1726637560091,13.2029,131.13,131.09,3.8139]
[1726637560688,3.8131,131.12,131.09,3.8139]
[1726637561191,13.2031,131.12,131.08,3.8141]
[1726637561392,13.2034,131.11,131.07,9.39]
[1726637561787,13.2034,131.11,131.07,13.2044]
[1726637561993,13.2034,131.11,131.07,9.39]
[1726637562892,13.2034,131.11,131.08,3.8142]
[1726637564890,3.8134,131.11,131.08,3.8142]
[1726637565285,13.2032,131.12,131.08,3.8142]
[1726637569399,13.2032,131.12,131.08,13.2042]
[1726637573505,3.8132,131.12,131.09,3.8139]
[1726637573803,13.2029,131.13,131.09,3.8139]
[1726637575805,3.8131,131.12,131.09,3.8139]
[1726637579902,3.8131,131.12,131.08,3.814]
[1726637580106,9.39,131.11,131.08,3.814]
[1726637580504,13.2035,131.11,131.08,3.814]
[1726637581406,13.2035,131.11,131.07,13.2044]
[1726637582206,3.8135,131.11,131.08,3.8142]
[1726637586309,1.4723,131.14,131.09,3.8138]
[1726637586615,9.39,131.13,131.09,3.8138]
[1726637587113,13.203,131.13,131.09,3.8138]
[1726637587905,1.4723,131.14,131.1,3.8136]
[1726637588112,9.39,131.13,131.1,3.8136]
[1726637588311,9.39,131.13,131.09,9.39]
[1726637588511,13.2029,131.13,131.09,3.8138]
[1726637592420,13.2029,131.13,131.09,13.2038]
[1726637599030,3.8129,131.13,131.1,3.8135]
[1726637599228,1.4723,131.14,131.1,9.39]
[1726637600128,1.4723,131.14,131.11,3.8132]
[1726637600331,10.8623,131.14,131.11,3.8132]
[1726637601828,14.6749,131.14,131.11,3.8132]
[1726637605135,3.8128,131.13,131.1,3.8135]
[1726637605725,3.8128,131.13,131.09,3.8137]
[1726637605726,3.8131,131.12,131.09,3.8137]
[1726637606737,13.2029,131.13,131.09,3.8137]
[1726637613142,3.8131,131.12,131.09,3.8137]
[1726637613342,9.39,131.13,131.09,3.8137]
[1726637614236,9.39,131.13,131.08,13.2041]
[1726637614836,3.8132,131.12,131.08,13.2041]
[1726637617442,13.2032,131.12,131.08,13.2041]
[1726637619041,3.8134,131.11,131.08,13.2041]
[1726637620242,1.4723,131.14,131.13,3.8128]
[1726637620542,1.4723,131.14,131.12,9.39]
[1726637621343,1.4723,131.14,131.12,9.35604525]
[1726637621737,1.4723,131.14,131.12,13.16894525]
[1726637622743,1.4825,131.15,131.13,3.8128]
[1726637622950,1.4825,131.15,131.12,9.35604525]
[1726637623749,10.8725,131.15,131.06,7.10049404]
[1726637623949,9.39,131.14,131.1,9.39]
[1726637624442,3.8125,131.14,131.11,9.39]
[1726637624747,10.8725,131.15,131.11,9.39]
[1726637625353,14.6848,131.15,131.11,13.2032]
[1726637627147,1.4825,131.15,131.12,3.813]
[1726637628749,5.2947,131.15,131.12,3.813]
[1726637629351,1.4825,131.15,131.13,3.8127]
[1726637629553,13.202,131.16,131.12,9.39]
[1726637629755,9.39,131.15,131.12,9.39]
[1726637630749,13.2022,131.15,131.12,13.203]
[1726637630955,9.39,131.15,131.11,9.39]
[1726637631859,13.2024,131.15,131.11,13.2031]
[1726637632844,3.8125,131.14,131.11,13.2031]
[1726637635958,3.8122,131.15,131.12,13.203]
[1726637640058,3.8126,131.14,131.1,9.39]
[1726637640360,9.39,131.15,131.1,9.39]
[1726637640559,9.39,131.14,131.1,9.39]
[1726637640753,3.8128,131.13,131.1,13.2035]
[1726637640958,9.39,131.15,131.11,9.39]
[1726637641363,10.8611,131.16,131.12,9.39]
[1726637641663,1.4711,131.16,131.12,9.39]
[1726637641861,3.8123,131.15,131.12,13.2028]
[1726637645763,3.8123,131.15,131.13,3.8127]
[1726637646156,14.6731,131.16,131.13,3.8127]
[1726637646967,3.8122,131.15,131.13,3.8127]
[1726637648177,14.6732,131.16,131.13,3.8127]
[1726637649675,3.8122,131.15,131.13,3.8127]
[1726637650170,5.3135,131.17,131.14,3.8125]
[1726637651371,5.3135,131.17,131.15,3.8122]
[1726637651870,5.3135,131.17,131.13,9.39]
[1726637652074,132.36474463,131.18,131.14,9.39]
[1726637652865,132.36474463,131.18,131.15,3.8122]
[1726637655772,132.36474463,131.18,131.14,9.39]
[1726637655773,132.36474463,131.18,131.16,3.8119]
[1726637656183,128.55314463,131.18,131.16,3.8119]
[1726637657682,132.36444463,131.18,131.16,3.8119]
[1726637658279,132.36444463,131.18,131.15,3.8121]
[1726637660187,3.8113,131.18,131.15,3.8121]
[1726637661076,3.8113,131.18,131.16,9.39]
[1726637663278,3.78411731,131.18,131.17,9.39]
[1726637663478,4.3346,131.21,131.17,9.39]
[1726637663479,1.4166,131.21,131.17,9.39]
[1726637663784,9.39,131.24,131.2,9.39]
[1726637664088,3.8103,131.22,131.2,9.39]
[1726637664388,9.39,131.25,131.2,9.39]
[1726637664589,3.81,131.23,131.2,13.2007]
[1726637665088,3.8102,131.22,131.19,3.8109]
[1726637665284,3.8102,131.22,131.19,9.39]
[1726637665483,3.8102,131.22,131.13,6.52605966]
[1726637665789,3.8102,131.22,131.19,13.201]
[1726637667683,3.8102,131.22,131.21,9.39]
[1726637667881,4.3696,131.27,131.21,9.39]
[1726637668082,9.39,131.26,131.22,9.39]
[1726637668482,4.3696,131.27,131.22,9.39]
[1726637668683,9.39,131.26,131.22,9.39]
[1726637669195,4.3696,131.27,131.22,9.39]
[1726637669383,9.39,131.26,131.22,9.39]
[1726637669589,3.8093,131.25,131.22,9.39]
[1726637670884,3.8093,131.25,131.22,13.2]
[1726637671391,3.8093,131.25,131.23,9.39]
[1726637672090,13.7596,131.27,131.23,9.39]
[1726637672293,1.4234,131.27,131.25,9.39]
[1726637673489,3.8085,131.28,131.25,9.39]
[1726637673697,9.39,131.29,131.25,9.39]
[1726637674798,3.8087,131.27,131.25,9.39]
[1726637683297,3.809,131.26,131.25,9.39]
[1726637684502,9.39,131.27,131.22,3.8099]
[1726637684697,9.39,131.27,131.22,13.1999]
[1726637685797,3.8093,131.25,131.22,13.1999]
[1726637688404,3.8093,131.25,131.23,9.39]
[1726637696104,3.8091,131.26,131.23,9.39]
[1726637699609,1.5035,131.27,131.23,9.39]
[1726637699799,1.5035,131.27,131.23,13.1999]
[1726637701009,3.8092,131.26,131.23,13.1999]
[1726637702507,9.39,131.26,131.21,3.8103]
[1726637702808,9.39,131.25,131.21,13.2003]
[1726637703012,3.8098,131.24,131.21,3.8103]
[1726637703218,9.39,131.25,131.21,9.39]
[1726637703910,9.39,131.25,131.13,2.8845]
[1726637703911,2.899,131.27,131.13,2.8845]
[1726637704211,9.39,131.24,131.2,9.39]
[1726637704616,9.39,131.23,131.13,2.8845]
[1726637704815,3.8107,131.21,131.18,9.39]
[1726637705298,9.39,131.22,131.18,9.39]
[1726637705499,9.39,131.21,131.13,2.8845]
[1726637705705,9.39,131.21,131.16,9.39]
[1726637706100,3.8111,131.19,131.16,9.39]
[1726637706307,3.8111,131.19,131.15,13.202]
[1726637706511,9.39,131.19,131.1,1.4553]
[1726637706807,9.39,131.16,131.1,9.39]
[1726637707014,3.8126,131.14,131.1,9.39]
[1726637707417,3.8126,131.14,131.11,9.39]
[1726637707610,5.2745,131.15,131.11,9.39]
[1726637708114,3.813,131.13,131.07,303.78052]
[1726637708312,3.813,131.13,131.1,9.39]
[1726637708514,12.2362,131.15,131.1,9.39]
[1726637708813,12.2362,131.15,131.07,303.78052]
[1726637708814,2.8462,131.15,131.11,9.39]
[1726637709610,3.8125,131.14,131.11,9.39]
[1726637709815,2.8462,131.15,131.11,9.39]
[1726637710021,6.6586,131.15,131.11,13.2033]
[1726637710710,1.4622,131.15,131.13,9.39]
[1726637710910,9.39,131.18,131.13,9.39]
[1726637711510,3.8119,131.17,131.13,13.2026]
[1726637714113,3.8119,131.16,131.13,13.2026]
[1726637715907,3.8117,131.17,131.14,9.39]
[1726637718718,3.8119,131.16,131.14,9.39]
[1726637718917,3.8119,131.16,131.13,13.2026]
[1726637719608,9.39,131.14,131.07,303.78052]
[1726637719816,9.39,131.14,131.1,9.39]
[1726637720207,13.2026,131.14,131.11,9.39]
[1726637720412,13.2026,131.14,131.07,303.78052]
[1726637720612,13.2026,131.14,131.11,9.39]
[1726637721013,3.8126,131.14,131.11,9.39]
[1726637721918,3.8126,131.14,131.11,13.2033]
[1726637723912,3.8122,131.16,131.12,3.813]
[1726637724116,9.39,131.17,131.12,13.203]
[1726637725817,3.8122,131.15,131.12,13.203]
[1726637727722,3.812,131.16,131.13,13.2026]
[1726637728619,3.8117,131.17,131.14,13.2024]
[1726637729816,3.8114,131.18,131.15,3.8121]
[1726637731725,3.8116,131.17,131.15,3.8121]
[1726637731926,3.8116,131.17,131.11,2.812]
[1726637731927,9.39,131.18,131.13,9.39]
[1726637732124,13.2022,131.15,131.07,303.78052]
[1726637732427,9.39,131.14,131.12,3.8129]
[1726637732727,9.39,131.14,131.11,9.39]
[1726637733127,9.39,131.14,131.11,13.2032]
[1726637733331,13.2025,131.14,131.11,3.8132]
[1726637733523,2.8173,131.2,131.07,303.78052]
[1726637733524,9.39,131.13,131.07,303.78052]
[1726637733829,13.2028,131.13,131.08,9.39]
[1726637734420,13.2028,131.13,131.1,3.8136]
[1726637735522,3.8131,131.12,131.09,3.8139]
[1726637736627,13.2029,131.13,131.09,3.8139]
[1726637737620,13.2029,131.13,131.08,9.39]
[1726637737621,13.2031,131.12,131.08,13.2042]
[1726637737828,9.39,131.11,131.07,313.17052]
[1726637738226,13.2035,131.11,131.07,303.78052]
[1726637738623,13.2036,131.11,131.07,307.59482]
[1726637738827,3.8136,131.11,131.07,316.98482]
[1726637739030,9.39,131.12,131.08,3.814]
[1726637739226,3.8131,131.12,131.09,9.39]
[1726637739420,9.39,131.13,131.09,9.39]
[1726637739624,9.39,131.13,131.09,13.2037]
[1726637739819,13.2029,131.13,131.09,13.2037]
[1726637742434,3.8131,131.12,131.09,13.2037]
[1726637744640,13.2029,131.13,131.09,13.2037]
[1726637745140,3.8129,131.13,131.1,3.8136]
[1726637745530,13.2026,131.14,131.1,13.2036]
[1726637745736,3.8126,131.14,131.11,3.8133]
[1726637746839,16.1743,131.15,131.12,3.8131]
[1726637747037,16.1743,131.15,131.12,9.39]
[1726637747038,1.4793,131.15,131.12,9.39]
[1726637747439,1.4793,131.15,131.13,3.8127]
[1726637748147,3.8121,131.16,131.13,3.8127]
[1726637748346,3.8117,131.17,131.14,3.8125]
[1726637748840,14.7076,131.18,131.15,3.8122]
[1726637749046,13.2014,131.18,131.15,3.8122]
[1726637749452,19.0511,131.19,131.16,13.2019]
[1726637750139,15.24,131.19,131.16,13.2019]
[1726637750645,15.24,131.19,131.17,3.8115]
[1726637750949,1.4014,131.21,131.18,9.39]
[1726637751244,1.4888,131.22,131.19,9.39]
[1726637751845,10.8788,131.22,131.19,9.39]
[1726637752042,3.8106,131.21,131.18,9.39]
[1726637752245,9.39,131.21,131.17,3.8116]
[1726637752852,3.8108,131.2,131.17,3.8116]
[1726637753045,9.39,131.2,131.15,9.39]
[1726637753544,13.2008,131.2,131.16,3.8116]
[1726637754044,13.2008,131.2,131.17,9.39]
[1726637754242,14.6943,131.21,131.18,9.39]
[1726637755043,14.6943,131.21,131.17,13.2016]
[1726637756958,9.39,131.2,131.17,3.8116]
[1726637759454,13.201,131.2,131.16,9.39]
[1726637759754,9.39,131.19,131.15,9.39]
[1726637760256,13.2012,131.19,131.16,3.8118]
[1726637760456,13.2012,131.19,131.15,9.39]
[1726637760958,13.2012,131.19,131.15,13.2021]
[1726637761352,13.2012,131.19,131.15,9.39]
[1726637761754,3.8112,131.19,131.16,9.39]
[1726637762358,3.8112,131.19,131.15,13.2021]
[1726637762556,3.8112,131.19,131.15,9.39]
[1726637762758,13.2009,131.2,131.16,9.39]
[1726637763965,13.2009,131.2,131.17,3.8116]
[1726637764454,13.2009,131.2,131.16,9.39]
[1726637764659,13.2009,131.2,131.16,13.2018]
[1726637766558,13.2009,131.2,131.17,3.8116]
[1726637767658,13.2009,131.2,131.16,13.2018]
[1726637768362,3.8109,131.2,131.16,13.2018]
[1726637768866,14.6944,131.21,131.16,9.39]
[1726637769260,14.6944,131.21,131.18,3.8113]
[1726637771861,9.39,131.19,131.11,6.8684205]
[1726637772165,9.39,131.17,131.13,9.39]
[1726637772361,13.2018,131.17,131.13,13.2025]
[1726637772963,13.2018,131.17,131.14,3.8125]
[1726637774468,9.39,131.17,131.14,13.2025]
[1726637774668,3.8114,131.18,131.15,13.2021]
[1726637776472,3.8112,131.19,131.16,13.2018]
[1726637780175,3.8109,131.2,131.16,13.2018]
[1726637780371,13.2009,131.2,131.16,13.2018]
[1726637781373,3.8109,131.2,131.17,3.8116]
[1726637782770,3.8111,131.19,131.16,13.2018]
[1726637785078,3.8109,131.2,131.17,3.8116]
[1726637785281,3.8109,131.2,131.17,13.2016]
[1726637785482,9.39,131.2,131.16,9.39]
[1726637785681,9.39,131.2,131.15,9.39]
[1726637786878,3.8112,131.19,131.16,3.8118]
[1726637787971,3.8112,131.19,131.16,13.2018]
[1726637789090,3.8112,131.19,131.16,9.39]
[1726637789474,3.8112,131.19,131.15,13.2021]
[1726637790975,3.8113,131.18,131.14,13.2023]
[1726637791180,9.39,131.18,131.14,13.2023]
[1726637791986,13.2015,131.18,131.14,13.2023]
[1726637792284,3.8115,131.18,131.14,13.2023]
[1726637795083,9.39,131.17,131.1,3.85753062]
[1726637795381,1.4938,131.21,131.11,9.39]
[1726637795382,9.39,131.15,131.11,9.39]
[1726637795582,9.39,131.15,131.1,3.85753062]
[1726637795583,13.2025,131.14,131.1,13.2035]
[1726637795777,1.4938,131.21,131.1,3.8135]
[1726637795778,9.39,131.13,131.1,3.8135]
[1726637796288,13.203,131.13,131.09,20.26118597]
[1726637796590,9.39,131.13,131.09,20.26118597]
[1726637796988,13.2029,131.13,131.09,20.26118597]
[1726637797176,9.39,131.13,131.09,7.05738597]
[1726637797381,9.39,131.12,131.09,7.05738597]
[1726637797784,9.39,131.12,131.09,16.44738597]
[1726637797988,13.203,131.13,131.09,16.44738597]
[1726637798185,13.203,131.13,131.09,9.39]
[1726637798889,13.2026,131.14,131.11,9.39]
[1726637799394,9.39,131.14,131.11,13.2033]
[1726637801386,16.2013,131.15,131.11,13.2033]
[1726637801582,16.2013,131.15,131.12,13.203]
[1726637801583,6.8113,131.15,131.12,13.203]
[1726637802690,6.8113,131.15,131.11,3.8133]
[1726637802691,3.8125,131.14,131.11,3.8133]
[1726637803081,13.2025,131.14,131.11,3.8133]
[1726637803282,3.8128,131.13,131.1,3.8135]
[1726637804694,3.8128,131.13,131.09,13.2038]
[1726637805193,13.2028,131.13,131.09,13.2038]
[1726637808196,13.2028,131.13,131.1,9.39]
[1726637809904,13.2028,131.13,131.09,13.2038]
[1726637815207,13.2028,131.13,131.1,3.8136]
[1726637817410,13.2028,131.13,131.09,13.2038]
[1726637819812,13.2031,131.12,131.09,3.8138]
[1726637820005,2.999,131.15,131.09,3.8138]
[1726637820308,13.2029,131.13,131.09,3.8138]
[1726637821210,13.2029,131.13,131.1,3.8136]
[1726637823011,3.8131,131.12,131.08,9.39]
[1726637823604,13.2031,131.12,131.04,2.9208]
[1726637823803,13.2031,131.12,131.08,3.8141]
[1726637824009,9.39,131.1,131.04,2.9208]
[1726637824311,9.39,131.09,131.05,9.39]
[1726637824814,9.39,131.1,131.07,307.59502]
[1726637825012,9.39,131.1,131.07,303.78052]
[1726637825209,9.39,131.1,131.07,313.17052]
[1726637826102,4.4107,131.15,131.08,3.8141]
[1726637826103,9.39,131.11,131.08,3.8141]
[1726637827807,13.2034,131.11,131.08,3.8141]
[1726637828809,9.39,131.11,131.08,3.8142]
[1726637832110,9.39,131.09,131.07,307.59492]
[1726637832305,9.39,131.09,131.07,303.78052]
[1726637832813,4.4107,131.15,131.07,303.78052]
[1726637832814,9.39,131.08,131.07,303.78052]
[1726637833006,13.2042,131.08,131.07,303.78052]
[1726637833908,9.39,131.08,131.07,303.78052]
[1726637836215,13.2041,131.09,131.07,303.78052]
[1726637836412,4.4107,131.15,131.07,303.78052]
[1726637836614,9.39,131.11,131.07,303.78052]
[1726637836812,9.39,131.1,131.07,303.78052]
[1726637837908,13.2036,131.1,131.07,307.59492]
[1726637840414,13.2035,131.11,131.08,3.8141]
[1726637843724,4.4107,131.15,131.09,3.8138]
[1726637844119,9.39,131.12,131.09,3.8138]
[1726637844324,13.2032,131.12,131.09,3.8138]
[1726637844526,9.39,131.12,131.1,3.8136]
[1726637845220,3.8129,131.13,131.1,3.8136]
[1726637845426,13.2029,131.13,131.1,3.8136]
[1726637846128,13.2026,131.14,131.1,9.39]
[1726637846431,10.8796,131.15,131.07,303.78052]
[1726637846622,9.39,131.14,131.1,9.39]
[1726637847728,9.39,131.14,131.11,9.39]
[1726637848027,1.4896,131.15,131.12,9.39]
[1726637848224,1.4896,131.15,131.13,3.8127]
[1726637848425,9.39,131.17,131.13,9.39]
[1726637848726,1.4714,131.18,131.15,9.39]
[1726637848917,10.8198,131.21,131.16,9.39]
[1726637849523,3.8108,131.2,131.16,13.2018]
[1726637852420,3.8108,131.2,131.16,3.8118]
[1726637852421,13.2008,131.2,131.16,3.8118]
[1726637854026,9.39,131.18,131.14,9.39]
[1726637854628,13.2015,131.18,131.14,13.2024]
[1726637858038,13.2015,131.18,131.15,3.8122]
[1726637860338,9.39,131.18,131.15,3.8122]
[1726637860532,9.39,131.18,131.15,13.2022]
[1726637860738,9.39,131.19,131.16,13.2018]
[1726637862138,9.39,131.19,131.15,3.8121]
[1726637862139,9.39,131.18,131.15,3.8121]
[1726637862338,9.39,131.17,131.09,7.05152305]
[1726637862538,9.39,131.17,131.14,3.8124]
[1726637863937,9.39,131.16,131.13,3.8126]
[1726637870048,9.39,131.15,131.08,2.9544]
[1726637870247,9.39,131.15,131.11,9.39]
[1726637870653,9.39,131.15,131.12,3.8128]
[1726637870849,9.39,131.15,131.12,13.2028]
[1726637879555,1.4298,131.21,131.13,3.8126]
[1726637879556,3.8117,131.17,131.13,3.8126]
[1726637879751,9.39,131.16,131.13,3.8126]
[1726637881356,3.8117,131.17,131.13,3.8126]
[1726637881553,9.39,131.16,131.13,3.8126]
[1726637882461,13.2019,131.16,131.13,3.8126]
[1726637884461,13.2019,131.16,131.12,3.813]
[1726637885362,9.39,131.15,131.12,3.813]
[1726637886864,13.2019,131.16,131.13,3.8127]
[1726637887064,9.39,131.18,131.14,9.39]
[1726637887267,1.4298,131.21,131.15,9.39]
[1726637887464,3.8112,131.19,131.15,13.2019]
[1726637887967,3.8112,131.19,131.15,9.39]
[1726637888169,3.8109,131.2,131.17,3.8116]
[1726637888365,3.8109,131.2,131.17,13.2016]
[1726637888865,3.8109,131.2,131.17,9.39]
[1726637889063,13.2011,131.19,131.16,3.8118]
[1726637890768,13.2011,131.19,131.15,13.2021]
[1726637893065,13.2011,131.19,131.16,3.8119]
[1726637896764,9.39,131.19,131.16,3.8119]
[1726637898567,9.39,131.19,131.16,13.2019]
[1726637908676,9.39,131.18,131.15,3.812]
[1726637910382,9.39,131.18,131.16,3.8119]
[1726637911877,13.2011,131.19,131.16,3.8119]
[1726637912483,3.8108,131.2,131.17,9.39]
[1726637912676,3.8108,131.2,131.17,13.2016]
[1726637915277,5.2403,131.21,131.17,13.2016]
[1726637915488,14.6303,131.21,131.17,13.2016]
[1726637916588,1.4298,131.21,131.18,13.2012]
[1726637918282,5.2403,131.21,131.18,13.2012]
[1726637919278,5.2403,131.21,131.18,9.39]
[1726637922989,14.6303,131.21,131.18,9.39]
[1726637923689,14.6303,131.21,131.17,13.2015]
[1726637940402,14.6303,131.21,131.16,3.89719341]
[1726637940403,13.2007,131.2,131.16,13.2018]
[1726637941601,5.2404,131.21,131.17,13.2015]
[1726637941802,1.4298,131.21,131.18,9.39]
[1726637941997,1.4558,131.23,131.19,9.39]
[1726637942294,5.2658,131.23,131.2,9.39]
[1726637942700,13.1997,131.24,131.2,13.2007]
[1726637943598,1.3979,131.25,131.21,13.2004]
[1726637943599,5.2073,131.25,131.21,13.2004]
[1726637943800,5.2073,131.25,131.21,9.39]
[1726637944401,132.3050318,131.26,131.22,9.39]
[1726637945908,132.3050318,131.26,131.22,13.2]
[1726637947998,132.3050318,131.26,131.22,3.81]
[1726637948209,141.6950318,131.26,131.22,13.2]
[1726637948403,9.39,131.24,131.21,3.8104]
[1726637949115,13.1997,131.24,131.2,3.8106]